[Event "Titled Tuesday Blitz January 10 Late 2023"]
[White "Defend, Balint"]
[Black "Deac, Bogdan-Daniel"]
[WhiteFideId "17004853"]
[BlackFideId "1226380"]
[WhiteElo "1673"]
[BlackElo "2700"]
[Result "1/2-1/2"]
[Round "01"]
[TimeControl "180+2"]
[Date "2023.01.10"]
[WhiteClock "0:00:36"]
[BlackClock "0:00:04"]

1. e4 {[%clk 0:00:00]}  g6 {[%clk 0:00:00]} 2. d4 {[%clk 0:02:59]}  Bg7 {[%clk 0:02:59]} 3. Bc4 {[%clk 0:02:59]}  c6 {[%clk 0:02:59]} 4. Bb3 {[%clk 0:03:00]}  d5 {[%clk 0:02:57]} 5. e5 {[%clk 0:03:00]}  a5 {[%clk 0:02:57]} 6. c3 {[%clk 0:03:00]}  Nh6 {[%clk 0:02:46]} 7. Ne2 {[%clk 0:02:55]}  O-O {[%clk 0:02:43]} 8. O-O {[%clk 0:02:40]}  f6 {[%clk 0:02:41]} 9. f4 {[%clk 0:02:39]}  Bg4 {[%clk 0:02:37]} 10. Be3 {[%clk 0:02:37]}  Qb6 {[%clk 0:02:32]} 11. Nd2 {[%clk 0:02:33]}  a4 {[%clk 0:02:20]} 12. Bc2 {[%clk 0:02:13]}  Qxb2 {[%clk 0:02:16]} 13. Rc1 {[%clk 0:02:13]}  Qxa2 {[%clk 0:02:16]} 14. h3 {[%clk 0:02:11]}  Bf5 {[%clk 0:01:56]} 15. g4 {[%clk 0:02:10]}  Bxc2 {[%clk 0:01:50]} 16. Rxc2 {[%clk 0:01:57]}  Qa3 {[%clk 0:01:49]} 17. Qb1 {[%clk 0:01:58]}  e6 {[%clk 0:01:50]} 18. Qxb7 {[%clk 0:01:58]}  Na6 {[%clk 0:01:24]} 19. Qxc6 {[%clk 0:01:57]}  Rfe8 {[%clk 0:01:24]} 20. exf6 {[%clk 0:01:53]}  Bf8 {[%clk 0:01:04]} 21. f5 {[%clk 0:01:43]}  exf5 {[%clk 0:00:58]} 22. Qxd5+ {[%clk 0:01:41]}  Nf7 {[%clk 0:00:51]} 23. Nc4 {[%clk 0:01:31]}  Qb3 {[%clk 0:00:48]} 24. Rb2 {[%clk 0:01:23]}  Rad8 {[%clk 0:00:17]} 25. Qxd8 {[%clk 0:01:24]}  Qxb2 {[%clk 0:00:16]} 26. Nxb2 {[%clk 0:01:05]}  Nxd8 {[%clk 0:00:07]} 27. Nc4 {[%clk 0:00:55]}  Nc7 {[%clk 0:00:06]} 28. Ne5 {[%clk 0:00:40]}  Nd5 {[%clk 0:00:05]} 29. Bg5 {[%clk 0:00:38]}  Nf7 {[%clk 0:00:05]} 30. gxf5 {[%clk 0:00:37]}  Nxg5 {[%clk 0:00:04]} 31. fxg6 {[%clk 0:00:34]}  hxg6 {[%clk 0:00:03]} 32. f7+ {[%clk 0:00:35]}  Nxf7 {[%clk 0:00:03]} 33. Rxf7 {[%clk 0:00:35]}  Rxe5 {[%clk 0:00:03]} 34. Rxf8+ {[%clk 0:00:36]}  Kxf8 {[%clk 0:00:03]} 35. dxe5 {[%clk 0:00:36]}  a3 {[%clk 0:00:04]} 36. Nd4 {[%clk 0:00:36]}  a2 {[%clk 0:00:05]} 37. Nb3 {[%clk 0:00:36]}  Nxc3 {[%clk 0:00:04]} 38. Kf2 {[%clk 0:00:35]}  Ke7 {[%clk 0:00:04]} 39. Ke3 {[%clk 0:00:33]}  Ke6 {[%clk 0:00:04]} 40. Kf4 {[%clk 0:00:31]}  Nd5+ {[%clk 0:00:05]} 41. Kg5 {[%clk 0:00:24]}  Kxe5 {[%clk 0:00:04]} 42. Kxg6 {[%clk 0:00:24]}  Nf4+ {[%clk 0:00:04]} 43. Kg5 {[%clk 0:00:25]}  Nxh3+ {[%clk 0:00:04]} 44. Kg4 {[%clk 0:00:24]}  Ng1 {[%clk 0:00:04]} 45. Kg3 {[%clk 0:00:24]}  Kd5 {[%clk 0:00:04]} 46. Kf2 {[%clk 0:00:23]}  Kc4 {[%clk 0:00:04]} 47. Na1 {[%clk 0:00:21]}  Kc3 {[%clk 0:00:04]} 48. Ke3 {[%clk 0:00:17]}  Nh3 {[%clk 0:00:04]} 49. Ke2 {[%clk 0:00:16]}  Kb2 {[%clk 0:00:03]} 50. Kd2 {[%clk 0:00:15]}  Kxa1 {[%clk 0:00:03]} 51. Kc2 {[%clk 0:00:14]}  Ng5 {[%clk 0:00:02]} 52. Kc1 {[%clk 0:00:07]}  Ne6 {[%clk 0:00:01]} 53. Kc2 {[%clk 0:00:08]}  Nc5 {[%clk 0:00:01]} 54. Kc1 {[%clk 0:00:09]}  Nb7 {[%clk 0:00:01]} 55. Kc2 {[%clk 0:00:10]}  Nd6 {[%clk 0:00:01]} 56. Kc1 {[%clk 0:00:11]}  Nf7 {[%clk 0:00:01]} 57. Kc2 {[%clk 0:00:12]}  Ng5 {[%clk 0:00:01]} 58. Kc1 {[%clk 0:00:13]}  Nf3 {[%clk 0:00:01]} 59. Kc2 {[%clk 0:00:14]}  Nd4+ {[%clk 0:00:01]} 60. Kc1 {[%clk 0:00:15]}  Nb5 {[%clk 0:00:02]} 61. Kc2 {[%clk 0:00:16]}  Na3+ {[%clk 0:00:02]} 62. Kc1 {[%clk 0:00:16]}  Nb1 {[%clk 0:00:02]} 63. Kc2 {[%clk 0:00:17]}  Nd2 {[%clk 0:00:03]} 64. Kc1 {[%clk 0:00:18]}  Nc4 {[%clk 0:00:04]} 65. Kc2 {[%clk 0:00:19]}  Ne5 {[%clk 0:00:04]} 66. Kc1 {[%clk 0:00:20]}  Nd7 {[%clk 0:00:04]} 67. Kc2 {[%clk 0:00:21]}  Nb8 {[%clk 0:00:05]} 68. Kc1 {[%clk 0:00:22]}  Nc6 {[%clk 0:00:05]} 69. Kc2 {[%clk 0:00:23]}  Nd4+ {[%clk 0:00:06]} 70. Kc1 {[%clk 0:00:24]}  Nf3 {[%clk 0:00:06]} 71. Kc2 {[%clk 0:00:25]}  Ng1 {[%clk 0:00:06]} 72. Kc1 {[%clk 0:00:25]}  Nh3 {[%clk 0:00:07]} 73. Kc2 {[%clk 0:00:26]}  Nf4 {[%clk 0:00:07]} 74. Kc1 {[%clk 0:00:27]}  Ne6 {[%clk 0:00:08]} 75. Kc2 {[%clk 0:00:28]}  Nc5 {[%clk 0:00:02]} 76. Kc1 {[%clk 0:00:29]}  Nd3+ {[%clk 0:00:02]} 77. Kc2 {[%clk 0:00:30]}  Nb2 {[%clk 0:00:02]} 78. Kc1 {[%clk 0:00:31]}  Nd3+ {[%clk 0:00:03]} 79. Kc2 {[%clk 0:00:32]}  Nb4+ {[%clk 0:00:03]} 80. Kc1 {[%clk 0:00:33]}  Nd5 {[%clk 0:00:04]} 81. Kc2 {[%clk 0:00:34]}  Ne3+ {[%clk 0:00:04]} 82. Kc1 {[%clk 0:00:34]}  Nc4 {[%clk 0:00:04]} 83. Kc2 {[%clk 0:00:35]}  Nb2 {[%clk 0:00:04]} 84. Kc1 {[%clk 0:00:36]}  Nd3+ {[%clk 0:00:04]} 1/2-1/2


[Site "https://www.chess.com"]

[Event "Titled Tuesday Blitz January 10 Late 2023"]
[White "Bortnyk, Olexandr"]
[Black "Suvorov, Luca"]
[WhiteFideId "14120828"]
[BlackFideId "12977071"]
[WhiteElo "2605"]
[BlackElo "2310"]
[Result "1-0"]
[Round "01"]
[TimeControl "180+2"]
[Date "2023.01.10"]
[WhiteClock "0:00:16"]
[BlackClock "0:00:08"]

1. e4 {[%clk 0:00:00]}  e5 {[%clk 0:00:00]} 2. Bc4 {[%clk 0:02:59]}  Nf6 {[%clk 0:02:59]} 3. d3 {[%clk 0:02:58]}  Nc6 {[%clk 0:02:58]} 4. Nc3 {[%clk 0:02:58]}  Na5 {[%clk 0:02:57]} 5. Nge2 {[%clk 0:02:58]}  a6 {[%clk 0:02:57]} 6. O-O {[%clk 0:02:57]}  b5 {[%clk 0:02:55]} 7. Bb3 {[%clk 0:02:48]}  Nxb3 {[%clk 0:02:23]} 8. axb3 {[%clk 0:02:45]}  Bb7 {[%clk 0:02:23]} 9. f4 {[%clk 0:02:46]}  Bc5+ {[%clk 0:02:24]} 10. Kh1 {[%clk 0:02:41]}  Ng4 {[%clk 0:02:24]} 11. Qe1 {[%clk 0:02:37]}  d6 {[%clk 0:02:17]} 12. Qg3 {[%clk 0:02:26]}  h5 {[%clk 0:02:08]} 13. h3 {[%clk 0:02:22]}  Qe7 {[%clk 0:02:03]} 14. b4 {[%clk 0:01:57]}  Bb6 {[%clk 0:01:46]} 15. f5 {[%clk 0:01:56]}  O-O-O {[%clk 0:01:43]} 16. Nd5 {[%clk 0:01:51]}  Bxd5 {[%clk 0:01:33]} 17. exd5 {[%clk 0:01:48]}  Kb7 {[%clk 0:01:33]} 18. c4 {[%clk 0:01:49]}  Nf6 {[%clk 0:01:22]} 19. Bg5 {[%clk 0:01:50]}  Ra8 {[%clk 0:01:18]} 20. Nc3 {[%clk 0:01:40]}  Qd7 {[%clk 0:00:57]} 21. Bxf6 {[%clk 0:01:39]}  gxf6 {[%clk 0:00:43]} 22. Ne4 {[%clk 0:01:38]}  Bd4 {[%clk 0:00:43]} 23. Nxf6 {[%clk 0:01:39]}  Qd8 {[%clk 0:00:38]} 24. Ne4 {[%clk 0:01:33]}  Bxb2 {[%clk 0:00:32]} 25. Ra2 {[%clk 0:01:22]}  Bd4 {[%clk 0:00:32]} 26. f6 {[%clk 0:01:22]}  Qd7 {[%clk 0:00:33]} 27. Qf3 {[%clk 0:01:21]}  h4 {[%clk 0:00:31]} 28. c5 {[%clk 0:01:20]}  dxc5 {[%clk 0:00:26]} 29. d6 {[%clk 0:01:20]}  Qc6 {[%clk 0:00:22]} 30. bxc5 {[%clk 0:01:02]}  Rac8 {[%clk 0:00:18]} 31. Rb1 {[%clk 0:01:02]}  Rhg8 {[%clk 0:00:16]} 32. Rb3 {[%clk 0:00:58]}  Rg6 {[%clk 0:00:16]} 33. Rba3 {[%clk 0:00:49]}  Ra8 {[%clk 0:00:15]} 34. Qh5 {[%clk 0:00:49]}  b4 {[%clk 0:00:07]} 35. Rb3 {[%clk 0:00:23]}  a5 {[%clk 0:00:07]} 36. Qxh4 {[%clk 0:00:22]}  Bxc5 {[%clk 0:00:08]} 37. dxc7 {[%clk 0:00:23]}  Bd4 {[%clk 0:00:07]} 38. Qe1 {[%clk 0:00:20]}  a4 {[%clk 0:00:07]} 39. Rxb4+ {[%clk 0:00:17]}  Kc8 {[%clk 0:00:07]} 40. Rc4 {[%clk 0:00:16]}  Qb5 {[%clk 0:00:07]} 41. Nd6+ {[%clk 0:00:16]}  Kd7 {[%clk 0:00:08]} 42. Nxb5 {[%clk 0:00:16]} 1-0


[Site "https://www.chess.com"]

[Event "Titled Tuesday Blitz January 10 Late 2023"]
[White "Roberson, Peter T"]
[Black "Chigaev, Maksim"]
[WhiteFideId "412384"]
[BlackFideId "4108116"]
[WhiteElo "2430"]
[BlackElo "2628"]
[Result "0-1"]
[Round "01"]
[TimeControl "180+2"]
[Date "2023.01.10"]
[WhiteClock "0:00:02"]
[BlackClock "0:00:06"]

1. e3 {[%clk 0:00:00]}  g6 {[%clk 0:00:00]} 2. Nf3 {[%clk 0:02:52]}  Bg7 {[%clk 0:02:59]} 3. d4 {[%clk 0:02:52]}  Nf6 {[%clk 0:02:59]} 4. Be2 {[%clk 0:02:52]}  O-O {[%clk 0:02:48]} 5. O-O {[%clk 0:02:52]}  c5 {[%clk 0:02:39]} 6. dxc5 {[%clk 0:02:53]}  Na6 {[%clk 0:02:38]} 7. Bxa6 {[%clk 0:02:49]}  bxa6 {[%clk 0:02:26]} 8. Nc3 {[%clk 0:02:44]}  Rb8 {[%clk 0:02:24]} 9. e4 {[%clk 0:02:42]}  Bb7 {[%clk 0:02:13]} 10. Qd3 {[%clk 0:02:28]}  Qa5 {[%clk 0:02:07]} 11. Be3 {[%clk 0:02:21]}  Bc6 {[%clk 0:01:59]} 12. Rab1 {[%clk 0:02:20]}  Ng4 {[%clk 0:01:55]} 13. Bd4 {[%clk 0:02:18]}  Bxd4 {[%clk 0:01:46]} 14. Nxd4 {[%clk 0:02:18]}  Qxc5 {[%clk 0:01:43]} 15. Nxc6 {[%clk 0:02:11]}  dxc6 {[%clk 0:01:40]} 16. Qxa6 {[%clk 0:02:08]}  Rfd8 {[%clk 0:01:36]} 17. Qe2 {[%clk 0:02:02]}  h5 {[%clk 0:01:36]} 18. h3 {[%clk 0:01:59]}  Ne5 {[%clk 0:01:35]} 19. Rfd1 {[%clk 0:01:57]}  Rxd1+ {[%clk 0:01:35]} 20. Nxd1 {[%clk 0:01:55]}  Rd8 {[%clk 0:01:20]} 21. Ne3 {[%clk 0:01:56]}  Qb4 {[%clk 0:01:06]} 22. Rd1 {[%clk 0:01:46]}  Rd6 {[%clk 0:01:04]} 23. Rxd6 {[%clk 0:01:11]}  exd6 {[%clk 0:00:46]} 24. Qa6 {[%clk 0:01:06]}  Qxb2 {[%clk 0:00:47]} 25. Qxa7 {[%clk 0:00:45]}  Kg7 {[%clk 0:00:28]} 26. a4 {[%clk 0:00:40]}  Qc1+ {[%clk 0:00:28]} 27. Nf1 {[%clk 0:00:34]}  c5 {[%clk 0:00:18]} 28. Qa6 {[%clk 0:00:24]}  Qxc2 {[%clk 0:00:18]} 29. Qxd6 {[%clk 0:00:11]}  Nd3 {[%clk 0:00:10]} 30. Qg3 {[%clk 0:00:10]}  c4 {[%clk 0:00:10]} 31. a5 {[%clk 0:00:08]}  Qa2 {[%clk 0:00:11]} 32. Qe3 {[%clk 0:00:07]}  Qxa5 {[%clk 0:00:08]} 33. Qd4+ {[%clk 0:00:04]}  Qe5 {[%clk 0:00:08]} 34. Qxc4 {[%clk 0:00:04]}  Nf4 {[%clk 0:00:06]} 35. Kh2 {[%clk 0:00:04]}  h4 {[%clk 0:00:06]} 36. Kg1 {[%clk 0:00:02]}  Kg8 {[%clk 0:00:05]} 37. Qb4 {[%clk 0:00:02]}  Ne6 {[%clk 0:00:05]} 38. Qd2 {[%clk 0:00:02]}  Qxe4 {[%clk 0:00:05]} 39. Qe3 {[%clk 0:00:01]}  Qc4 {[%clk 0:00:05]} 40. Nd2 {[%clk 0:00:02]}  Qc1+ {[%clk 0:00:05]} 41. Kh2 {[%clk 0:00:02]}  Qc7+ {[%clk 0:00:05]} 42. Kg1 {[%clk 0:00:02]}  Qd6 {[%clk 0:00:06]} 43. Nf3 {[%clk 0:00:03]}  Qd1+ {[%clk 0:00:06]} 44. Qe1 {[%clk 0:00:03]}  Qd6 {[%clk 0:00:06]} 45. Qe5 {[%clk 0:00:04]}  Qd1+ {[%clk 0:00:07]} 46. Qe1 {[%clk 0:00:04]}  Qa4 {[%clk 0:00:07]} 47. Qe5 {[%clk 0:00:03]}  Nf4 {[%clk 0:00:08]} 48. Qb8+ {[%clk 0:00:03]}  Kh7 {[%clk 0:00:08]} 49. Ng5+ {[%clk 0:00:02]}  Kh6 {[%clk 0:00:08]} 50. Nxf7+ {[%clk 0:00:03]}  Kg7 {[%clk 0:00:08]} 51. Ng5 {[%clk 0:00:03]}  Ne2+ {[%clk 0:00:09]} 52. Kf1 {[%clk 0:00:02]}  Qd1# {[%clk 0:00:06]} 0-1


[Site "https://www.chess.com"]

[Event "Titled Tuesday Blitz January 10 Late 2023"]
[White "Bluebaum, Matthias"]
[Black "gshwbedhkhd"]
[WhiteFideId "24651516"]
[WhiteElo "2669"]
[BlackElo "2527"]
[Result "1-0"]
[Round "01"]
[TimeControl "180+2"]
[Date "2023.01.10"]
[WhiteClock "0:01:11"]
[BlackClock "0:00:04"]

1. d4 {[%clk 0:00:00]}  f5 {[%clk 0:00:00]} 2. Nf3 {[%clk 0:03:00]}  Nf6 {[%clk 0:02:58]} 3. c4 {[%clk 0:02:59]}  g6 {[%clk 0:02:58]} 4. e3 {[%clk 0:03:00]}  Bg7 {[%clk 0:02:58]} 5. b4 {[%clk 0:03:00]}  O-O {[%clk 0:02:58]} 6. Be2 {[%clk 0:03:01]}  d6 {[%clk 0:02:58]} 7. Bb2 {[%clk 0:03:01]}  c6 {[%clk 0:02:59]} 8. O-O {[%clk 0:03:02]}  Qe8 {[%clk 0:02:56]} 9. a4 {[%clk 0:03:00]}  h6 {[%clk 0:02:56]} 10. Qb3 {[%clk 0:03:01]}  g5 {[%clk 0:02:53]} 11. b5 {[%clk 0:03:00]}  g4 {[%clk 0:02:50]} 12. Nfd2 {[%clk 0:02:57]}  Nbd7 {[%clk 0:02:36]} 13. Nc3 {[%clk 0:02:56]}  e5 {[%clk 0:02:30]} 14. Ba3 {[%clk 0:02:56]}  c5 {[%clk 0:02:27]} 15. dxe5 {[%clk 0:02:52]}  dxe5 {[%clk 0:02:26]} 16. Nd5 {[%clk 0:02:47]}  Qd8 {[%clk 0:02:21]} 17. Rad1 {[%clk 0:02:46]}  b6 {[%clk 0:02:09]} 18. f4 {[%clk 0:02:41]}  e4 {[%clk 0:02:08]} 19. Bb2 {[%clk 0:02:33]}  Bb7 {[%clk 0:01:51]} 20. Nb1 {[%clk 0:02:25]}  Rc8 {[%clk 0:01:41]} 21. Nbc3 {[%clk 0:02:09]}  Qe8 {[%clk 0:01:26]} 22. Nxf6+ {[%clk 0:02:07]}  Nxf6 {[%clk 0:01:24]} 23. Nd5 {[%clk 0:02:05]}  Nxd5 {[%clk 0:01:22]} 24. Bxg7 {[%clk 0:02:05]}  Kxg7 {[%clk 0:01:07]} 25. cxd5 {[%clk 0:01:59]}  Rd8 {[%clk 0:00:45]} 26. d6 {[%clk 0:01:59]}  Rf6 {[%clk 0:00:45]} 27. Qc3 {[%clk 0:01:59]}  Kg6 {[%clk 0:00:42]} 28. h3 {[%clk 0:01:50]}  h5 {[%clk 0:00:34]} 29. hxg4 {[%clk 0:01:40]}  hxg4 {[%clk 0:00:31]} 30. Kf2 {[%clk 0:01:34]}  Rfxd6 {[%clk 0:00:32]} 31. Rxd6+ {[%clk 0:01:33]}  Rxd6 {[%clk 0:00:22]} 32. Rh1 {[%clk 0:01:34]}  Rd8 {[%clk 0:00:22]} 33. Bc4 {[%clk 0:01:35]}  Qf8 {[%clk 0:00:14]} 34. Qe5 {[%clk 0:01:29]}  Rd2+ {[%clk 0:00:13]} 35. Kg3 {[%clk 0:01:16]}  Rd6 {[%clk 0:00:12]} 36. Rh8 {[%clk 0:01:16]}  Qf6 {[%clk 0:00:04]} 37. Qe8+ {[%clk 0:01:11]}  Kg7 {[%clk 0:00:04]} 38. Qg8# {[%clk 0:01:11]} 1-0


[Site "https://www.chess.com"]

[Event "Titled Tuesday Blitz January 10 Late 2023"]
[White "Van Foreest, Jorden"]
[Black "Winterberg, Lukas"]
[WhiteFideId "1039784"]
[BlackFideId "24622702"]
[WhiteElo "2689"]
[BlackElo "2402"]
[Result "0-1"]
[Round "01"]
[TimeControl "180+2"]
[Date "2023.01.10"]
[WhiteClock "0:01:10"]
[BlackClock "0:00:32"]

1. e4 {[%clk 0:00:00]}  e6 {[%clk 0:00:00]} 2. d4 {[%clk 0:02:59]}  d5 {[%clk 0:02:58]} 3. e5 {[%clk 0:02:59]}  c5 {[%clk 0:02:59]} 4. c3 {[%clk 0:03:00]}  Nc6 {[%clk 0:02:58]} 5. Nf3 {[%clk 0:03:00]}  Nge7 {[%clk 0:02:59]} 6. Na3 {[%clk 0:03:00]}  cxd4 {[%clk 0:02:59]} 7. cxd4 {[%clk 0:02:58]}  Nf5 {[%clk 0:02:59]} 8. Nc2 {[%clk 0:02:59]}  f6 {[%clk 0:03:00]} 9. exf6 {[%clk 0:02:59]}  Qxf6 {[%clk 0:03:00]} 10. Bg5 {[%clk 0:02:56]}  Qf7 {[%clk 0:03:00]} 11. Bd3 {[%clk 0:02:48]}  Bd6 {[%clk 0:02:58]} 12. O-O {[%clk 0:02:41]}  O-O {[%clk 0:02:57]} 13. Re1 {[%clk 0:02:42]}  Bd7 {[%clk 0:02:57]} 14. Rc1 {[%clk 0:02:43]}  Kh8 {[%clk 0:02:55]} 15. Re2 {[%clk 0:02:38]}  Rae8 {[%clk 0:02:38]} 16. Bd2 {[%clk 0:02:29]}  Qh5 {[%clk 0:02:35]} 17. Bc3 {[%clk 0:02:22]}  Nfxd4 {[%clk 0:02:28]} 18. Ncxd4 {[%clk 0:02:15]}  Nxd4 {[%clk 0:02:19]} 19. Bxd4 {[%clk 0:01:49]}  Rxf3 {[%clk 0:02:19]} 20. g3 {[%clk 0:01:49]}  e5 {[%clk 0:02:19]} 21. Bc5 {[%clk 0:01:46]}  Bxc5 {[%clk 0:02:06]} 22. Rxc5 {[%clk 0:01:42]}  Bg4 {[%clk 0:01:52]} 23. Bb5 {[%clk 0:01:41]}  Ref8 {[%clk 0:01:53]} 24. Qxd5 {[%clk 0:01:30]}  R3f5 {[%clk 0:01:41]} 25. Rxe5 {[%clk 0:01:29]}  h6 {[%clk 0:01:19]} 26. Rxf5 {[%clk 0:01:17]}  Bxf5 {[%clk 0:00:45]} 27. Bd7 {[%clk 0:01:14]}  g6 {[%clk 0:00:42]} 28. Qe5+ {[%clk 0:01:14]}  Kh7 {[%clk 0:00:33]} 29. Bxf5 {[%clk 0:01:14]}  gxf5 {[%clk 0:00:31]} 30. Rc7+ {[%clk 0:01:10]}  Rf7 {[%clk 0:00:32]} 31. Qxf5+ {[%clk 0:01:10]}  Qxf5 {[%clk 0:00:32]} 0-1


[Site "https://www.chess.com"]

[Event "Titled Tuesday Blitz January 10 Late 2023"]
[White "Martinez Reyes, Pedro Ramon"]
[Black "Jobava, Baadur"]
[WhiteFideId "3901807"]
[BlackFideId "13601520"]
[WhiteElo "2376"]
[BlackElo "2578"]
[Result "0-1"]
[Round "01"]
[TimeControl "180+2"]
[Date "2023.01.10"]
[WhiteClock "0:00:44"]
[BlackClock "0:01:17"]

1. e4 {[%clk 0:00:00]}  e6 {[%clk 0:00:00]} 2. d4 {[%clk 0:03:00]}  d5 {[%clk 0:02:56]} 3. exd5 {[%clk 0:02:59]}  exd5 {[%clk 0:02:57]} 4. Bd3 {[%clk 0:03:00]}  Bd6 {[%clk 0:02:57]} 5. Ne2 {[%clk 0:03:01]}  Nc6 {[%clk 0:02:57]} 6. c3 {[%clk 0:03:01]}  Nge7 {[%clk 0:02:57]} 7. Qc2 {[%clk 0:03:01]}  g6 {[%clk 0:02:57]} 8. Bg5 {[%clk 0:03:01]}  O-O {[%clk 0:02:55]} 9. Ng3 {[%clk 0:02:58]}  f6 {[%clk 0:02:52]} 10. Bh6 {[%clk 0:02:55]}  Rf7 {[%clk 0:02:52]} 11. O-O {[%clk 0:02:54]}  Bxg3 {[%clk 0:02:53]} 12. hxg3 {[%clk 0:02:53]}  Bf5 {[%clk 0:02:52]} 13. Nd2 {[%clk 0:02:53]}  Qd7 {[%clk 0:02:53]} 14. Rfe1 {[%clk 0:02:50]}  Re8 {[%clk 0:02:53]} 15. Re2 {[%clk 0:02:49]}  Bxd3 {[%clk 0:02:53]} 16. Qxd3 {[%clk 0:02:47]}  Nf5 {[%clk 0:02:43]} 17. Be3 {[%clk 0:02:47]}  Rfe7 {[%clk 0:02:43]} 18. Rae1 {[%clk 0:02:41]}  Kf7 {[%clk 0:02:41]} 19. Bf4 {[%clk 0:02:40]}  Rxe2 {[%clk 0:02:40]} 20. Rxe2 {[%clk 0:02:36]}  Rxe2 {[%clk 0:02:35]} 21. Qxe2 {[%clk 0:02:36]}  h5 {[%clk 0:02:36]} 22. Qb5 {[%clk 0:02:36]}  b6 {[%clk 0:02:33]} 23. Kf1 {[%clk 0:02:28]}  g5 {[%clk 0:02:28]} 24. Be3 {[%clk 0:02:24]}  Qe6 {[%clk 0:02:27]} 25. Qd3 {[%clk 0:02:22]}  Nce7 {[%clk 0:02:22]} 26. Kg1 {[%clk 0:02:16]}  c6 {[%clk 0:02:22]} 27. Nf1 {[%clk 0:02:10]}  Kg7 {[%clk 0:02:22]} 28. a4 {[%clk 0:02:09]}  Nd6 {[%clk 0:02:16]} 29. a5 {[%clk 0:02:09]}  b5 {[%clk 0:02:14]} 30. Qd1 {[%clk 0:02:04]}  Kg6 {[%clk 0:02:08]} 31. b4 {[%clk 0:02:04]}  Nef5 {[%clk 0:02:07]} 32. Bc1 {[%clk 0:01:59]}  Nc4 {[%clk 0:02:06]} 33. g4 {[%clk 0:01:59]}  hxg4 {[%clk 0:01:55]} 34. Nh2 {[%clk 0:01:47]}  g3 {[%clk 0:01:52]} 35. fxg3 {[%clk 0:01:31]}  Nxg3 {[%clk 0:01:50]} 36. Qd3+ {[%clk 0:01:31]}  Ne4 {[%clk 0:01:47]} 37. Nf3 {[%clk 0:01:31]}  Qf5 {[%clk 0:01:47]} 38. a6 {[%clk 0:01:29]}  Ng3 {[%clk 0:01:45]} 39. Ne5+ {[%clk 0:01:18]}  Nxe5 {[%clk 0:01:40]} 40. Qxg3 {[%clk 0:01:11]}  Qd3 {[%clk 0:01:37]} 41. Qxd3+ {[%clk 0:01:11]}  Nxd3 {[%clk 0:01:32]} 42. Bd2 {[%clk 0:01:05]}  Kf5 {[%clk 0:01:31]} 43. Kf1 {[%clk 0:01:02]}  Ke4 {[%clk 0:01:30]} 44. Ke2 {[%clk 0:01:02]}  Nf4+ {[%clk 0:01:30]} 45. Kf2 {[%clk 0:01:00]}  Ne6 {[%clk 0:01:26]} 46. Ke2 {[%clk 0:00:56]}  Nc7 {[%clk 0:01:25]} 47. Be1 {[%clk 0:00:55]}  f5 {[%clk 0:01:19]} 48. Bg3 {[%clk 0:00:54]}  f4 {[%clk 0:01:17]} 49. Bf2 {[%clk 0:00:44]}  Nxa6 {[%clk 0:01:17]} 50. g3 {[%clk 0:00:44]}  f3+ {[%clk 0:01:17]} 0-1


[Site "https://www.chess.com"]

[Event "Titled Tuesday Blitz January 10 Late 2023"]
[White "Martinez Alcantara, Jose Eduardo"]
[Black "Ozates, Tuna"]
[WhiteFideId "3805662"]
[BlackFideId "6354521"]
[WhiteElo "2619"]
[BlackElo "2251"]
[Result "1-0"]
[Round "01"]
[TimeControl "180+2"]
[Date "2023.01.10"]
[WhiteClock "0:02:13"]
[BlackClock "0:02:44"]

1. e4 {[%clk 0:00:00]}  c5 {[%clk 0:00:00]} 2. Nf3 {[%clk 0:03:00]}  Nc6 {[%clk 0:02:55]} 3. c3 {[%clk 0:03:00]}  Nf6 {[%clk 0:02:55]} 4. Bd3 {[%clk 0:03:00]}  e5 {[%clk 0:02:53]} 5. Bc2 {[%clk 0:03:00]}  d5 {[%clk 0:02:52]} 6. exd5 {[%clk 0:02:59]}  Qxd5 {[%clk 0:02:52]} 7. Qe2 {[%clk 0:03:00]}  Bd6 {[%clk 0:02:52]} 8. Bb3 {[%clk 0:03:00]}  Qe4 {[%clk 0:02:51]} 9. Bxf7+ {[%clk 0:02:49]}  Kf8 {[%clk 0:02:51]} 10. Qxe4 {[%clk 0:02:49]}  Nxe4 {[%clk 0:02:50]} 11. Bc4 {[%clk 0:02:45]}  Nf6 {[%clk 0:02:51]} 12. d3 {[%clk 0:02:38]}  Bf5 {[%clk 0:02:47]} 13. Nh4 {[%clk 0:02:36]}  Bd7 {[%clk 0:02:47]} 14. Nd2 {[%clk 0:02:31]}  Re8 {[%clk 0:02:46]} 15. Ne4 {[%clk 0:02:28]}  Nxe4 {[%clk 0:02:47]} 16. dxe4 {[%clk 0:02:27]}  Be7 {[%clk 0:02:47]} 17. Nf3 {[%clk 0:02:28]}  Bf6 {[%clk 0:02:47]} 18. Be3 {[%clk 0:02:26]}  b6 {[%clk 0:02:47]} 19. O-O-O {[%clk 0:02:26]}  Ke7 {[%clk 0:02:47]} 20. Rd2 {[%clk 0:02:26]}  Rd8 {[%clk 0:02:47]} 21. Rhd1 {[%clk 0:02:22]}  Bg4 {[%clk 0:02:47]} 22. Rxd8 {[%clk 0:02:22]}  Rxd8 {[%clk 0:02:48]} 23. Rxd8 {[%clk 0:02:22]}  Nxd8 {[%clk 0:02:48]} 24. Nd2 {[%clk 0:02:22]}  h6 {[%clk 0:02:49]} 25. Kc2 {[%clk 0:02:20]}  Bg5 {[%clk 0:02:47]} 26. Bxg5+ {[%clk 0:02:20]}  hxg5 {[%clk 0:02:47]} 27. Nf1 {[%clk 0:02:18]}  Be6 {[%clk 0:02:48]} 28. Bxe6 {[%clk 0:02:16]}  Nxe6 {[%clk 0:02:45]} 29. Ne3 {[%clk 0:02:16]}  g6 {[%clk 0:02:46]} 30. g3 {[%clk 0:02:16]}  Kd6 {[%clk 0:02:44]} 31. Nc4+ {[%clk 0:02:13]} 1-0


[Site "https://www.chess.com"]